[Event "Balkan Youth Online-ch 2020"]
[Site "Online"]
[Date "2020.10.31"]
[Round "3.13"]
[White "Magold, Filip"]
[Black "Ipek, Egehan"]
[Result "1-0"]
[ECO "B44"]
[WhiteElo "2043"]
[BlackElo "1723"]
[Annotator "RC"]
[PlyCount "21"]
[EventDate "2020.10.31"]
[EventType "swiss"]
[SourceTitle "playchess.com"]
[Source "ChessBase"]
[SourceQuality "1"]
[TimeControl "5400+30"]

1. e4 {[%emt 1:05:20]} c5 {[%emt 1:05:23]} 2. Nf3 {[%emt 0:00:22]} e6 {[%emt 0:00:22]} 3. d4 {[%emt 0:00:27]} cxd4 {[%emt 0:00:22]} 4. Nxd4 {[%emt 0:00:21]} Nc6 {[%emt 0:00:21]} 5. Nxc6 {[%emt 0:00:27]} b6 {[%emt 0:00:23]} 6. Nxd8 {[%emt 0:00:32]} Kxd8 {[%emt 0:00:36]} 7. Bf4 {[%emt 0:00:27]} Nf6 {[%emt 0:00:32]} 8. Nc3 {[%emt 0:00:22]} Bb4 {[%emt 0:00:24]} 9. Bd3 {[%emt 0:00:27]} d5 {[%emt 0:00:26]} 10. exd5 {[%emt 0:00:24]} Nxd5 {[%emt 0:00:22]} 11. Be4 {[%emt 0:00:22]} 1-0

[Event "Balkan Youth Online-ch 2020"]
[Site "Online"]
[Date "2020.10.31"]
[Round "3.17"]
[White "Poupalos, Nikolaos"]
[Black "Markosek, Bine"]
[Result "1-0"]
[ECO "C84"]
[WhiteElo "1887"]
[BlackElo "1287"]
[Annotator "NA RC"]
[PlyCount "129"]
[EventDate "2020.10.31"]
[EventType "swiss"]
[SourceTitle "playchess.com"]
[Source "ChessBase"]
[SourceQuality "1"]
[TimeControl "1500+5"]

1. e4 {[%emt 0:00:00]} e5 {[%emt 0:00:00]} 2. Nf3 {[%emt 0:00:00]} Nc6 {[%emt 0:00:00]} 3. Bb5 {[%emt 0:00:00]} a6 {[%emt 0:00:00]} 4. Ba4 {[%emt 0:00:00]} Nf6 {[%emt 0:00:00]} 5. d3 {[%emt 0:00:00]} d6 {[%emt 0:00:00]} 6. c3 {[%emt 0:00:00]} Be7 {[%emt 0:00:00]} 7. O-O {[%emt 0:00:00]} O-O {[%emt 0:00:00]} 8. Re1 {[%emt 0:00:00]} b5 {[%emt 0:00:00]} 9. Bc2 {[%emt 0:00:00]} Bb7 {[%emt 0:00:45] C84: Closed Ruy Lopez: Unusual White 6th moves.} 10. Nbd2 {[%emt 0:00:00]} Qd7 {[%emt 0:00:45]} 11. Nf1 {[%emt 0:00:21] [#]} Na5 $146 {[%emt 0:00:12]} ({Predecessor:} 11... Rfe8 12. Ng3 Bf8 13. Bg5 Qd8 14. h3 h6 15. Bxf6 Qxf6 16. Nh2 g6 17. Re3 Bg7 {1-0 (44) Mazur,A (1731)-Zablocka,K (1292) Poronin 2020}) 12. b4 {[%emt 0:00:15]} Nc6 {[%emt 0:00:02]} 13. Bg5 {[%emt 0:06:13]} h6 {[%emt 0:00:38]} 14. Bh4 {[%emt 0:00:12]} Nh7 {[%emt 0:01:39]} 15. Bg3 {[%emt 0:00:39]} Ng5 {[%emt 0:00:40]} 16. Bb3 {[%emt 0:01:30]} a5 {[%emt 0:00:20]} 17. Nxg5 {[%emt 0:01:18]} Bxg5 {[%emt 0:00:01]} 18. a3 {[%emt 0:00:00]} axb4 {[%emt 0:00:05]} 19. axb4 {[%emt 0:00:00]} Rxa1 {[%emt 0:00:20]} 20. Qxa1 {[%emt 0:00:00]} Ne7 {[%emt 0:00:23]} 21. Ne3 {[%emt 0:02:06]} h5 {[%emt 0:01:28]} 22. h3 {[%emt 0:01:33]} h4 {[%emt 0:00:25]} 23. Bh2 {[%emt 0:00:00]} Kh8 {[%emt 0:01:30]} (23... Ra8 $11 {keeps the balance.} 24. Qb2 Qe8) 24. Qd1 {[%emt 0:00:24]} g6 {[%emt 0:00:29]} (24... Kg8 $14) 25. Qf3 {[%emt 0:00:49]} f5 {[%emt 0:00:23]} 26. g3 {[%emt 0:02:11]} Kg7 {[%emt 0:01:03]} 27. Qg2 {[%emt 0:00:33]} hxg3 {[%emt 0:00:15]} 28. Qxg3 {[%emt 0:00:32]} Bf4 {[%emt 0:00:12]} 29. Qg2 {[%emt 0:00:07]} Bxh2+ {[%emt 0:00:09]} 30. Kxh2 {[%emt 0:00:15]} Rh8 {[%emt 0:01:48]} 31. Nd5 {[%emt 0:01:07]} Nxd5 {[%emt 0:00:21]} 32. exd5 {[%emt 0:00:00]} (32. Bxd5 $17 Bxd5 33. exd5) 32... Bc8 {[%emt 0:00:06]} 33. f4 {[%emt 0:01:19]} exf4 {[%emt 0:00:45]} 34. Qf2 {[%emt 0:00:59]} Re8 {[%emt 0:02:17]} 35. Re6 {[%emt 0:00:00]} Rxe6 {[%emt 0:00:06]} 36. dxe6 {[%emt 0:00:00]} Qe7 $19 {[%emt 0:00:34]} 37. Qe1 {[%emt 0:03:02]} f3 {[%emt 0:01:27]} 38. Qe3 {[%emt 0:00:47]} Bb7 {[%emt 0:01:56]} 39. d4 {[%emt 0:00:50]} g5 {[%emt 0:05:43]} 40. d5 {[%emt 0:00:15]} g4 {[%emt 0:00:05]} 41. Qd4+ {[%emt 0:00:27]} Qf6 {[%emt 0:00:00]} 42. Qxf6+ {[%emt 0:00:31]} Kxf6 {[%emt 0:00:00]} 43. hxg4 {[%emt 0:00:00]} fxg4 {[%emt 0:00:00]} 44. Kg3 {[%emt 0:00:00]} c6 {[%emt 0:00:00]} 45. dxc6 {[%emt 0:00:07]} Bxc6 {[%emt 0:00:00]} 46. c4 {[%emt 0:00:00]} Kxe6 {[%emt 0:00:29]} 47. cxb5+ {[%emt 0:00:00]} Bd5 {[%emt 0:00:00]} 48. b6 {[%emt 0:00:01]} Kd7 {[%emt 0:00:30]} 49. Bxd5 {[%emt 0:00:00]} Kc8 {[%emt 0:00:13]} 50. Kf2 {[%emt 0:00:13]} Kb8 {[%emt 0:00:13]} 51. Ke3 {[%emt 0:00:00]} Kc8 {[%emt 0:00:00]} 52. Kd4 {[%emt 0:00:03]} f2 {[%emt 0:00:20]} 53. Bg2 {[%emt 0:00:00]} f1=Q {[%emt 0:00:20]} 54. Bxf1 {[%emt 0:00:02]} Kb7 {[%emt 0:00:00]} 55. Bg2+ {[%emt 0:00:09]} Kxb6 {[%emt 0:00:00]} 56. Kc4 {[%emt 0:00:00]} g3 {[%emt 0:00:05]} 57. Bf3 {[%emt 0:00:00]} Kc7 {[%emt 0:00:07]} 58. Kb5 {[%emt 0:00:04]} Kb8 {[%emt 0:00:16]} 59. Kc6 {[%emt 0:00:01]} Ka7 {[%emt 0:00:00]} 60. b5 {[%emt 0:00:00]} Kb8 {[%emt 0:00:00]} 61. Kxd6 {[%emt 0:00:00]} Kc8 {[%emt 0:00:00]} 62. Kc6 {[%emt 0:00:00]} Kb8 {[%emt 0:00:00]} 63. Bg2 {[%emt 0:00:00]} Ka7 {[%emt 0:00:15]} 64. b6+ {[%emt 0:00:03]} Kb8 {[%emt 0:00:00]} 65. b7 {[%emt 0:00:00]} 1-0

[Event "Balkan Youth Online-ch 2020"]
[Site "Online"]
[Date "2020.10.31"]
[Round "3.18"]
[White "Ramaj, Ergit"]
[Black "Boeru, Dragos-Matei"]
[Result "0-1"]
[ECO "D02"]
[WhiteElo "1444"]
[BlackElo "1756"]
[Annotator "NA RC"]
[PlyCount "66"]
[EventDate "2020.10.31"]
[EventType "swiss"]
[SourceTitle "playchess.com"]
[Source "ChessBase"]
[SourceQuality "1"]
[TimeControl "1500+5"]

1. d4 {[%emt 0:00:00]} d5 {[%emt 0:00:01]} 2. Bf4 {[%emt 0:00:00]} Nf6 {[%emt 0:00:00]} 3. e3 {[%emt 0:00:00]} Nc6 {[%emt 0:00:00]} 4. Nf3 {[%emt 0:00:22]} a6 {[%emt 0:00:07]} 5. h3 {[%emt 0:00:11]} Bf5 {[%emt 0:00:11]} 6. Bd3 {[%emt 0:00:08]} Bg6 {[%emt 0:00:00]} 7. O-O {[%emt 0:00:01]} e6 {[%emt 0:00:00]} 8. c3 {[%emt 0:01:06]} Bd6 {[%emt 0:00:24]} 9. Ne5 {[%emt 0:00:39]} Ne7 {[%emt 0:00:08]} 10. Bh2 {[%emt 0:02:38]} O-O {[%emt 0:00:20]} 11. Bxg6 {[%emt 0:00:09]} Nxg6 {[%emt 0:00:02]} 12. f4 {[%emt 0:00:08]} Ne4 {[%emt 0:01:34]} 13. Nd2 {[%emt 0:00:31]} Nxd2 {[%emt 0:00:30]} 14. Qxd2 {[%emt 0:00:00]} Nxe5 {[%emt 0:00:25]} 15. dxe5 {[%emt 0:00:22]} Bc5 {[%emt 0:00:01]} 16. g4 {[%emt 0:02:33]} Be7 {[%emt 0:01:11]} 17. f5 {[%emt 0:02:23]} exf5 {[%emt 0:00:10]} 18. gxf5 {[%emt 0:00:05]} Bg5 {[%emt 0:00:08]} 19. f6 {[%emt 0:00:28]} gxf6 {[%emt 0:01:00]} 20. Kh1 {[%emt 0:04:59]} fxe5 {[%emt 0:02:55]} 21. Rg1 {[%emt 0:00:37]} Kh8 {[%emt 0:00:19]} 22. Bxe5+ {[%emt 0:00:46]} f6 {[%emt 0:00:04]} 23. Bd4 {[%emt 0:00:54]} Qc8 {[%emt 0:04:03]} 24. Rxg5 {[%emt 0:01:51]} c5 {[%emt 0:00:21]} 25. Rh5 {[%emt 0:00:34]} cxd4 {[%emt 0:00:19]} 26. Qxd4 {[%emt 0:00:29]} Qe6 {[%emt 0:02:00]} 27. Rd1 {[%emt 0:01:26]} Rae8 {[%emt 0:01:00]} 28. Qd3 {[%emt 0:01:04]} Rf7 {[%emt 0:00:54]} 29. Rxd5 {[%emt 0:01:19]} Qxh3+ {[%emt 0:00:03]} 30. Kg1 {[%emt 0:00:15]} Rg7+ {[%emt 0:00:10]} 31. Kf2 {[%emt 0:00:13]} Rg2+ {[%emt 0:00:08]} 32. Ke1 {[%emt 0:00:02]} Qg3+ {[%emt 0:00:04]} 33. Kf1 {[%emt 0:00:18]} Qf2# {[%emt 0:00:00]} 0-1

[Event "Balkan Youth Online-ch 2020"]
[Site "Online"]
[Date "2020.10.31"]
[Round "3.20"]
[White "Cvetkovski, Gjorgji"]
[Black "Nikolovski, Kiril"]
[Result "1/2-1/2"]
[ECO "B02"]
[WhiteElo "1332"]
[BlackElo "1282"]
[Annotator "NA RC"]
[PlyCount "58"]
[EventDate "2020.10.31"]
[EventType "swiss"]
[SourceTitle "playchess.com"]
[Source "ChessBase"]
[SourceQuality "1"]
[TimeControl "1500+5"]

1. e4 {[%emt 0:00:00]} d5 {[%emt 0:00:00]} 2. exd5 {[%emt 0:00:00]} Nf6 {[%emt 0:00:00]} 3. Nc3 {[%emt 0:00:25]} Nxd5 {[%emt 0:00:00]} 4. d4 {[%emt 0:00:24]} Nc6 {[%emt 0:00:53]} 5. Bc4 {[%emt 0:00:16]} e6 {[%emt 0:00:04]} 6. Nf3 {[%emt 0:00:40]} Bb4 {[%emt 0:00:05]} 7. Bd2 {[%emt 0:00:00]} O-O {[%emt 0:01:18]} 8. O-O {[%emt 0:00:01]} Nb6 {[%emt 0:00:58]} 9. Bd3 {[%emt 0:05:05]} Nxd4 {[%emt 0:00:38]} 10. Nxd4 {[%emt 0:00:06]} Qxd4 {[%emt 0:00:00]} 11. Qh5 {[%emt 0:00:42]} h6 {[%emt 0:00:19]} 12. Be3 {[%emt 0:02:55]} Qd8 {[%emt 0:04:33]} 13. Bxh6 {[%emt 0:03:23]} gxh6 {[%emt 0:03:36]} 14. Qg4+ {[%emt 0:01:41]} Qg5 {[%emt 0:00:17]} 15. Qxb4 {[%emt 0:00:28]} Bd7 {[%emt 0:01:16]} 16. Qe4 {[%emt 0:01:15]} Qg7 {[%emt 0:00:48]} 17. Qf4 {[%emt 0:03:04]} Bc6 {[%emt 0:02:00]} 18. Be4 {[%emt 0:00:51]} Bxe4 {[%emt 0:00:37]} 19. Qxe4 {[%emt 0:00:34]} c6 {[%emt 0:00:12]} 20. Rfe1 {[%emt 0:00:03]} Nd5 {[%emt 0:00:19]} 21. Nxd5 {[%emt 0:00:19]} cxd5 {[%emt 0:00:01]} 22. Qb4 {[%emt 0:00:17]} Rfc8 {[%emt 0:01:04]} 23. b3 {[%emt 0:01:08]} Rxc2 {[%emt 0:00:32]} 24. Rad1 {[%emt 0:00:14]} Rc7 {[%emt 0:01:09]} 25. Rd3 {[%emt 0:00:04]} Kh8 {[%emt 0:00:39]} 26. Rg3 {[%emt 0:00:06]} Qf6 {[%emt 0:00:09]} 27. Rf3 {[%emt 0:00:48]} Qg7 {[%emt 0:00:00]} 28. Qf4 {[%emt 0:00:20]} Rac8 {[%emt 0:01:13]} 29. Rg3 {[%emt 0:00:00]} Qf8 {[%emt 0:00:09]} 1/2-1/2

[Event "Balkan Youth Online-ch 2020"]
[Site "Online"]
[Date "2020.10.31"]
[Round "3.22"]
[White "Kalin, Andrei"]
[Black "Milovic, Ilija"]
[Result "0-1"]
[ECO "B01"]
[WhiteElo "1426"]
[BlackElo "1044"]
[Annotator "NA RC"]
[PlyCount "118"]
[EventDate "2020.10.31"]
[EventType "swiss"]
[SourceTitle "playchess.com"]
[Source "ChessBase"]
[SourceQuality "1"]
[TimeControl "1500+5"]

1. e4 {[%emt 0:00:00]} d5 {[%emt 0:00:03]} 2. exd5 {[%emt 0:00:00]} Nf6 {[%emt 0:00:02]} 3. d4 {[%emt 0:00:00]} Qxd5 {[%emt 0:00:00]} 4. c4 {[%emt 0:00:17]} Qd8 {[%emt 0:00:01]} 5. Nc3 {[%emt 0:00:00]} Bf5 {[%emt 0:00:05]} 6. Nf3 {[%emt 0:00:10]} e6 {[%emt 0:00:07]} 7. Bf4 {[%emt 0:00:30]} Nbd7 {[%emt 0:00:04]} 8. Nb5 {[%emt 0:01:38]} Bb4+ {[%emt 0:00:34]} 9. Nc3 {[%emt 0:01:17]} Ne4 {[%emt 0:00:11]} 10. Qb3 {[%emt 0:00:56]} Bxc3+ {[%emt 0:00:41]} 11. bxc3 {[%emt 0:00:00]} O-O {[%emt 0:00:00]} 12. Be2 {[%emt 0:00:17]} Qe7 {[%emt 0:00:43]} 13. O-O {[%emt 0:00:33]} b6 {[%emt 0:00:05]} 14. Rad1 {[%emt 0:02:24]} c5 {[%emt 0:00:29]} 15. Rfe1 {[%emt 0:00:37]} Rad8 {[%emt 0:00:35]} 16. Bd3 {[%emt 0:00:04]} Ndf6 {[%emt 0:00:12]} 17. Qc2 {[%emt 0:01:31]} Qb7 {[%emt 0:00:28]} 18. Be5 {[%emt 0:01:46]} Nd6 {[%emt 0:02:13]} 19. Bxf6 {[%emt 0:03:18]} gxf6 {[%emt 0:00:16]} 20. Bxf5 {[%emt 0:00:44]} Nxf5 {[%emt 0:00:01]} 21. d5 {[%emt 0:00:11]} Rfe8 {[%emt 0:01:12]} 22. Re2 {[%emt 0:04:04]} Rd6 {[%emt 0:01:13]} 23. Rde1 {[%emt 0:01:14]} Qd7 {[%emt 0:00:15]} 24. Qe4 {[%emt 0:01:44]} Ng7 {[%emt 0:00:35]} 25. Qh4 {[%emt 0:01:12]} exd5 {[%emt 0:01:11]} 26. cxd5 {[%emt 0:00:54]} Rxe2 {[%emt 0:00:20]} 27. Rxe2 {[%emt 0:00:00]} Rxd5 {[%emt 0:00:00]} 28. Qxf6 {[%emt 0:00:38]} Rd1+ {[%emt 0:00:21]} 29. Re1 {[%emt 0:00:00]} Rxe1+ {[%emt 0:00:18]} 30. Nxe1 {[%emt 0:00:00]} Qe6 {[%emt 0:00:17]} 31. Qxe6 {[%emt 0:00:12]} Nxe6 {[%emt 0:00:00]} 32. Kf1 {[%emt 0:00:00]} f5 {[%emt 0:00:04]} 33. Nd3 {[%emt 0:01:16]} c4 {[%emt 0:00:39]} 34. Nc1 {[%emt 0:00:10]} Nf4 {[%emt 0:00:05]} 35. Ne2 {[%emt 0:00:00]} Nd3 {[%emt 0:00:30]} 36. g3 {[%emt 0:00:07]} Kf7 {[%emt 0:00:00]} 37. Kg2 {[%emt 0:00:00]} Kf6 {[%emt 0:00:04]} 38. Kf3 {[%emt 0:00:00]} Ke5 {[%emt 0:00:13]} 39. Ke3 {[%emt 0:00:03]} b5 {[%emt 0:00:32]} 40. f4+ {[%emt 0:00:04]} Kd5 {[%emt 0:00:04]} 41. Nd4 {[%emt 0:00:11]} Nc1 {[%emt 0:01:24]} 42. a3 {[%emt 0:00:00]} Na2 {[%emt 0:00:37]} 43. Kd2 {[%emt 0:00:04]} Ke4 {[%emt 0:00:25]} 44. Kc2 {[%emt 0:00:01]} b4 {[%emt 0:00:34]} 45. axb4 {[%emt 0:00:28]} Nxb4+ {[%emt 0:00:05]} 46. Kd2 {[%emt 0:00:00]} Nd5 {[%emt 0:00:57]} 47. Nb5 {[%emt 0:00:01]} a5 {[%emt 0:00:04]} 48. Nd6+ {[%emt 0:00:05]} Kf3 {[%emt 0:00:20]} 49. Nxc4 {[%emt 0:00:08]} a4 {[%emt 0:00:09]} 50. Nd6 {[%emt 0:00:03]} Ne7 {[%emt 0:00:18]} 51. c4 {[%emt 0:00:03]} Kg2 {[%emt 0:00:03]} 52. Kc3 {[%emt 0:00:03]} Kxh2 {[%emt 0:00:04]} 53. Kb4 {[%emt 0:00:00]} Kxg3 {[%emt 0:00:05]} 54. Kxa4 {[%emt 0:00:16]} Kxf4 {[%emt 0:00:01]} 55. c5 {[%emt 0:00:00]} h5 {[%emt 0:00:00]} 56. Nf7 {[%emt 0:00:14]} h4 {[%emt 0:00:13]} 57. Nh6 {[%emt 0:00:04]} h3 {[%emt 0:00:03]} 58. Kb5 {[%emt 0:00:00]} h2 {[%emt 0:00:02]} 59. c6 {[%emt 0:00:00]} Nxc6 {[%emt 0:00:02]} 0-1

[Event "Balkan Youth Online-ch 2020"]
[Site "Online"]
[Date "2020.10.31"]
[Round "3.28"]
[White "Dafa, Sirio"]
[Black "Erdogan, Tekin Alp"]
[Result "0-1"]
[ECO "B13"]
[WhiteElo "1004"]
[BlackElo "1828"]
[Annotator "NA RC"]
[PlyCount "86"]
[EventDate "2020.10.31"]
[EventType "swiss"]
[SourceTitle "playchess.com"]
[Source "ChessBase"]
[SourceQuality "1"]
[TimeControl "1500+5"]

1. e4 {[%emt 0:00:00]} c6 {[%emt 0:00:00]} 2. d4 {[%emt 0:00:00]} d5 {[%emt 0:00:00]} 3. exd5 {[%emt 0:00:00]} cxd5 {[%emt 0:00:00]} 4. Bd3 {[%emt 0:00:00]} Nc6 {[%emt 0:00:00]} 5. c3 {[%emt 0:00:00]} Nf6 {[%emt 0:00:00]} 6. Bf4 {[%emt 0:00:00]} e6 {[%emt 0:00:00]} 7. Nd2 {[%emt 0:00:35]} Bd6 {[%emt 0:00:04]} 8. Bxd6 {[%emt 0:00:10]} Qxd6 {[%emt 0:00:10]} 9. Ngf3 {[%emt 0:00:02]} O-O {[%emt 0:00:00]} 10. O-O {[%emt 0:00:45]} Rb8 {[%emt 0:00:36] B13: Caro-Kann: Exchange Variation and Panov-Botvinnik Attack.} 11. a4 {[%emt 0:01:26]} h6 {[%emt 0:01:58]} 12. Re1 {[%emt 0:00:26] [#]} Nd7 $146 {[%emt 0:00:36]} ({Predecessor:} 12... Qc7 13. h3 a6 14. Qe2 b5 15. axb5 axb5 16. b4 Ne7 {½-½ (16) Kassuba,M-Korsus,B Lingen 1996}) 13. Qc2 {[%emt 0:01:50]} e5 {[%emt 0:01:35]} 14. dxe5 {[%emt 0:04:02]} Ndxe5 {[%emt 0:00:07]} 15. Bf5 {[%emt 0:01:45]} Qf6 {[%emt 0:00:55]} 16. Bxc8 {[%emt 0:02:08]} Rfxc8 {[%emt 0:00:00]} 17. Nxe5 {[%emt 0:01:46]} Nxe5 {[%emt 0:00:00]} 18. Nb3 {[%emt 0:01:05]} Ng6 {[%emt 0:02:03]} 19. Nd4 {[%emt 0:00:53]} Qxd4 {[%emt 0:06:43]} (19... Ne5 $14) 20. Qxg6 {[%emt 0:04:07]} Qxc3 $1 {[%emt 0:00:14]} 21. Qf5 {[%emt 0:03:33]} Qxb2 {[%emt 0:00:44]} 22. Qxd5 {[%emt 0:00:03]} Rc2 {[%emt 0:00:44]} 23. Rab1 {[%emt 0:00:57]} Qf6 {[%emt 0:00:31]} 24. Rf1 {[%emt 0:00:43]} b6 {[%emt 0:00:03]} 25. Qd7 {[%emt 0:00:18]} a5 {[%emt 0:00:36]} 26. Qb5 {[%emt 0:00:14]} g6 {[%emt 0:00:13]} 27. Qb3 {[%emt 0:00:04]} Qf5 {[%emt 0:00:04]} 28. Qg3 {[%emt 0:00:05]} Rb7 {[%emt 0:00:26]} 29. Rb5 {[%emt 0:00:13]} Qe6 {[%emt 0:00:46]} 30. Rfb1 {[%emt 0:00:05]} Kh7 {[%emt 0:00:14]} 31. h3 {[%emt 0:00:00]} Qc6 $17 {[%emt 0:00:14]} 32. Qf4 {[%emt 0:00:01]} Rc4 {[%emt 0:00:18]} 33. Qe3 {[%emt 0:00:14]} Rxa4 {[%emt 0:00:10]} 34. Rxb6 {[%emt 0:00:00]} Rxb6 {[%emt 0:00:00]} 35. Qxb6 {[%emt 0:00:00]} Qc4 {[%emt 0:00:23]} 36. Qb7 {[%emt 0:00:05]} Rb4 {[%emt 0:00:00]} 37. Rxb4 {[%emt 0:00:00]} axb4 {[%emt 0:00:00]} 38. Kh2 {[%emt 0:00:00]} b3 {[%emt 0:00:00]} 39. g3 {[%emt 0:00:00]} Kg7 {[%emt 0:00:00]} 40. Qb8 {[%emt 0:00:00]} Qc3 {[%emt 0:00:00]} 41. Qb7 {[%emt 0:00:14]} b2 {[%emt 0:00:00]} 42. Qe4 {[%emt 0:00:00]} Qb3 {[%emt 0:00:17]} 43. Qd4+ {[%emt 0:00:19]} Kh7 {[%emt 0:00:00]} 0-1

[Event "Balkan Youth Online-ch 2020"]
[Site "Online"]
[Date "2020.10.31"]
[Round "3.43"]
[White "Dimov, Nikola"]
[Black "Filippovskiy Nikita"]
[Result "1-0"]
[ECO "B35"]
[WhiteElo "1771"]
[BlackElo "1534"]
[Annotator "NA RC"]
[PlyCount "85"]
[EventDate "2020.10.31"]
[EventType "swiss"]
[SourceTitle "playchess.com"]
[Source "ChessBase"]
[SourceQuality "1"]
[TimeControl "5400+30"]

1. e4 {[%emt 1:05:20]} c5 {[%emt 1:05:26]} 2. Nf3 {[%emt 0:00:23]} Nc6 {[%emt 0:00:21]} 3. d4 {[%emt 0:00:25]} cxd4 {[%emt 0:00:23]} 4. Nxd4 {[%emt 0:00:22]} g6 {[%emt 0:00:23]} 5. Nc3 {[%emt 0:00:22]} Bg7 {[%emt 0:00:21]} 6. Be3 {[%emt 0:00:22]} Nf6 {[%emt 0:00:22]} 7. Bc4 {[%emt 0:00:26]} O-O {[%emt 0:00:23]} 8. f3 {[%emt 0:00:22]} Qb6 {[%emt 0:00:41]} 9. a3 {[%emt 0:00:23]} Qxb2 {[%emt 0:00:28]} 10. Na4 {[%emt 0:00:34]} Qxa1 {[%emt 0:00:55]} 11. Qxa1 {[%emt 0:00:24]} a6 {[%emt 0:00:28]} 12. Nb6 {[%emt 0:00:38]} Rb8 {[%emt 0:00:25]} 13. O-O {[%emt 0:00:47]} d6 {[%emt 0:00:34]} 14. c3 {[%emt 0:00:47]} Ne5 {[%emt 0:00:34]} 15. Bb3 {[%emt 0:00:36]} Bd7 {[%emt 0:00:34]} 16. Qd1 {[%emt 0:01:32]} Bb5 {[%emt 0:00:50]} 17. Nxb5 {[%emt 0:00:36]} axb5 {[%emt 0:00:28]} 18. Qd2 {[%emt 0:00:25]} Nc4 {[%emt 0:00:26]} 19. Nxc4 {[%emt 0:00:31]} bxc4 {[%emt 0:00:23]} 20. Bxc4 {[%emt 0:00:25]} Rfc8 {[%emt 0:00:22]} 21. Bb3 {[%emt 0:00:29]} b5 {[%emt 0:00:45]} 22. Rc1 {[%emt 0:00:43]} Ra8 {[%emt 0:00:32]} 23. Ra1 {[%emt 0:01:01]} b4 {[%emt 0:00:28]} 24. cxb4 {[%emt 0:00:47]} Nxe4 {[%emt 0:00:27]} 25. fxe4 {[%emt 0:01:15]} Bxa1 {[%emt 0:00:25]} 26. Qa2 {[%emt 0:00:54]} Be5 {[%emt 0:00:41]} 27. Bxf7+ {[%emt 0:00:24]} Kf8 {[%emt 0:00:22]} 28. Bh6+ {[%emt 0:00:29]} Bg7 {[%emt 0:00:24]} 29. Bxg7+ {[%emt 0:00:38]} Kxg7 {[%emt 0:00:22]} 30. Bc4 {[%emt 0:00:24]} Rc7 {[%emt 0:00:36]} 31. Qb2+ {[%emt 0:00:36]} e5 {[%emt 0:00:25]} 32. Bd5 {[%emt 0:01:00]} Rac8 {[%emt 0:00:24]} 33. h3 {[%emt 0:00:22]} Rc2 {[%emt 0:00:30]} 34. Qb3 {[%emt 0:00:25]} Rc1+ {[%emt 0:00:30]} 35. Kh2 {[%emt 0:00:24]} R8c3 {[%emt 0:00:25]} 36. Qa4 {[%emt 0:00:28]} Rc7 {[%emt 0:00:34]} 37. Qa6 {[%emt 0:00:37]} R7c3 {[%emt 0:01:05]} 38. Qxd6 {[%emt 0:00:36]} R1c2 {[%emt 0:01:07]} 39. Qxe5+ {[%emt 0:00:25]} Kh6 {[%emt 0:00:21]} 40. Qe7 {[%emt 0:01:03]} Rxa3 {[%emt 0:00:52]} 41. h4 {[%emt 0:00:49]} Rd3 {[%emt 0:00:39]} 42. Bg8 {[%emt 0:00:28]} Kh5 {[%emt 0:00:32]} 43. Qg5# {[%emt 0:00:24]} 1-0

[Event "Balkan Youth Online-ch 2020"]
[Site "Online"]
[Date "2020.10.31"]
[Round "3.44"]
[White "Mitkov, Simeon-Alekzander"]
[Black "Boci, Petro"]
[Result "0-1"]
[ECO "B33"]
[WhiteElo "1319"]
[BlackElo "1434"]
[Annotator "NA RC"]
[PlyCount "68"]
[EventDate "2020.10.31"]
[EventType "swiss"]
[SourceTitle "playchess.com"]
[Source "ChessBase"]
[SourceQuality "1"]
[TimeControl "5400+30"]

1. e4 {[%emt 1:05:20]} c5 {[%emt 1:05:24]} 2. Nf3 {[%emt 0:00:24]} Nc6 {[%emt 0:00:22]} 3. d4 {[%emt 0:00:24]} cxd4 {[%emt 0:00:22]} 4. Nxd4 {[%emt 0:00:23]} Nf6 {[%emt 0:00:22]} 5. Nc3 {[%emt 0:00:24]} e5 {[%emt 0:00:22]} 6. Ndb5 {[%emt 0:00:35]} d6 {[%emt 0:00:24]} 7. Be3 {[%emt 0:00:47]} a6 {[%emt 0:00:51]} 8. Na3 {[%emt 0:00:27]} Rb8 {[%emt 0:00:50]} 9. Qd2 {[%emt 0:01:06]} b5 {[%emt 0:00:52]} 10. Bxb5 {[%emt 0:02:20]} axb5 {[%emt 0:00:41]} 11. Naxb5 {[%emt 0:00:23]} Nxe4 {[%emt 0:03:31]} 12. Nxe4 {[%emt 0:00:29]} Rxb5 {[%emt 0:00:25]} 13. O-O-O {[%emt 0:00:26]} d5 {[%emt 0:04:43]} 14. Nc3 {[%emt 0:00:24]} Bb4 {[%emt 0:01:27]} 15. Qd3 {[%emt 0:02:07]} Rb8 {[%emt 0:04:36]} 16. Nxd5 {[%emt 0:00:34]} Qa5 {[%emt 0:03:25]} 17. Nxb4 {[%emt 0:00:38]} Nxb4 {[%emt 0:01:49]} 18. Qd6 {[%emt 0:02:19]} Nxa2+ {[%emt 0:01:17]} 19. Kb1 {[%emt 0:00:25]} Nc3+ {[%emt 0:00:57]} 20. Kc1 {[%emt 0:00:30]} Qa1+ {[%emt 0:00:38]} 21. Kd2 {[%emt 0:00:26]} Ne4+ {[%emt 0:00:24]} 22. Ke2 {[%emt 0:00:35]} Nxd6 {[%emt 0:01:43]} 23. Rxa1 {[%emt 0:00:26]} Rxb2 {[%emt 0:00:30]} 24. Kd3 {[%emt 0:01:14]} Bf5+ {[%emt 0:00:34]} 25. Kd2 {[%emt 0:00:39]} Rxc2+ {[%emt 0:00:27]} 26. Kd1 {[%emt 0:00:29]} O-O {[%emt 0:00:25]} 27. Bc5 {[%emt 0:00:28]} Rxc5 {[%emt 0:00:23]} 28. Ke2 {[%emt 0:00:35]} Rfc8 {[%emt 0:00:24]} 29. Rhd1 {[%emt 0:00:28]} Rc2+ {[%emt 0:00:33]} 30. Ke1 {[%emt 0:00:24]} Nb5 {[%emt 0:00:38]} 31. Ra5 {[%emt 0:01:05]} R2c5 {[%emt 0:00:28]} 32. Ra2 {[%emt 0:00:42]} Nc3 {[%emt 0:00:29]} 33. Rad2 {[%emt 0:00:36]} Nxd1 {[%emt 0:00:24]} 34. Kxd1 {[%emt 0:00:23]} Be6 {[%emt 0:00:25]} 0-1